[Event "American Cup Women Elimination 2024"]
[Site "Saint Louis"]
[Date "2024.03.14"]
[Round "1.1"]
[White "Zatonskih, Anna"]
[Black "Tang, Zoey"]
[Result "0-1"]
[ECO "D14"]
[WhiteElo "2348"]
[BlackElo "2253"]
[Annotator "RC"]
[PlyCount "144"]
[EventDate "2024.03.11"]
[EventType "k.o."]
[EventCountry "USA"]
[SourceTitle "playchess.com"]
[Source "ChessBase"]
[SourceQuality "1"]
[TimeControl "900+10"]

1. d4 {[%emt 0:00:02]} d5 {[%emt 0:00:02]} 2. c4 {[%emt 0:00:01]} c6 {[%emt 0:00:02]} 3. cxd5 {[%emt 0:00:04]} cxd5 {[%emt 0:00:01]} 4. Bf4 {[%emt 0:00:06]} Nc6 {[%emt 0:00:03]} 5. e3 {[%emt 0:00:04]} Nf6 {[%emt 0:00:09]} 6. Nc3 {[%emt 0:00:02]} Bf5 {[%emt 0:00:28]} 7. Nf3 {[%emt 0:00:05]} e6 {[%emt 0:00:06]} 8. Bb5 {[%emt 0:00:09]} Nd7 {[%emt 0:00:49]} 9. O-O {[%emt 0:00:26]} Be7 {[%emt 0:00:34]} 10. Rc1 {[%emt 0:00:10]} Rc8 {[%emt 0:01:25]} 11. Ne5 {[%emt 0:01:39]} Ndxe5 {[%emt 0:00:47]} 12. Bxe5 {[%emt 0:00:01]} O-O {[%emt 0:00:15]} 13. Bg3 {[%emt 0:00:03]} a6 {[%emt 0:02:03]} 14. Be2 {[%emt 0:02:26]} b5 {[%emt 0:01:45]} 15. Bd3 {[%emt 0:06:46]} Bxd3 {[%emt 0:00:52]} 16. Qxd3 {[%emt 0:00:01]} Qb6 {[%emt 0:00:02]} 17. Ne2 {[%emt 0:00:31]} Na5 {[%emt 0:02:38]} 18. Rxc8 {[%emt 0:00:57]} Rxc8 {[%emt 0:00:02]} 19. Rc1 {[%emt 0:00:31]} Rxc1+ {[%emt 0:01:34]} 20. Nxc1 {[%emt 0:00:01]} Qc6 {[%emt 0:00:02]} 21. Qd1 {[%emt 0:00:41]} h5 {[%emt 0:02:10]} 22. h3 {[%emt 0:01:19]} h4 {[%emt 0:00:16]} 23. Bf4 {[%emt 0:00:06]} b4 {[%emt 0:01:38]} 24. Nd3 {[%emt 0:00:40]} Qc8 {[%emt 0:00:49]} 25. Qa4 {[%emt 0:01:53]} Nc4 {[%emt 0:00:06]} 26. Qc2 {[%emt 0:00:06]} Nb6 {[%emt 0:00:26]} 27. Qxc8+ {[%emt 0:00:03]} Nxc8 {[%emt 0:00:02]} 28. Bc7 {[%emt 0:00:06]} Na7 {[%emt 0:00:05]} 29. Kf1 {[%emt 0:00:09]} Nc6 {[%emt 0:00:07]} 30. Ke2 {[%emt 0:00:18]} a5 {[%emt 0:00:04]} 31. b3 {[%emt 0:00:08]} f6 {[%emt 0:00:05]} 32. Bb6 {[%emt 0:00:16]} Kf7 {[%emt 0:00:08]} 33. Kd2 {[%emt 0:00:04]} e5 {[%emt 0:00:09]} 34. f3 {[%emt 0:00:12]} g5 {[%emt 0:00:17]} 35. dxe5 {[%emt 0:00:11]} fxe5 {[%emt 0:00:01]} 36. e4 {[%emt 0:00:01]} Ke6 {[%emt 0:00:13]} 37. exd5+ {[%emt 0:00:09]} Kxd5 {[%emt 0:00:02]} 38. Nf2 {[%emt 0:00:04]} Nd4 {[%emt 0:00:33]} 39. Ne4 {[%emt 0:00:23]} Ne6 {[%emt 0:00:11]} 40. Be3 {[%emt 0:00:06]} Bd8 {[%emt 0:00:11]} 41. Kd3 {[%emt 0:00:03]} Be7 {[%emt 0:00:05]} 42. Bd2 {[%emt 0:00:37]} Bd8 {[%emt 0:00:07]} 43. Be3 {[%emt 0:00:07]} Be7 {[%emt 0:00:01]} 44. g3 {[%emt 0:00:14]} hxg3 {[%emt 0:00:28]} 45. Nxg3 {[%emt 0:00:01]} Ng7 {[%emt 0:00:04]} 46. Bb6 {[%emt 0:00:18]} Ne6 {[%emt 0:00:02]} 47. Be3 {[%emt 0:00:06]} Ng7 {[%emt 0:00:02]} 48. Bd2 {[%emt 0:00:11]} Bd8 {[%emt 0:00:05]} 49. Nf1 {[%emt 0:00:05]} Ne6 {[%emt 0:00:29]} 50. Ne3+ {[%emt 0:00:06]} Kc5 {[%emt 0:00:02]} 51. Nf5 {[%emt 0:00:14]} Kd5 {[%emt 0:00:17]} 52. Ne3+ {[%emt 0:00:12]} Kc5 {[%emt 0:00:01]} 53. Ng4 {[%emt 0:00:06]} Kd5 {[%emt 0:00:13]} 54. Be3 {[%emt 0:00:01]} Be7 {[%emt 0:00:13]} 55. Nf2 {[%emt 0:00:06]} Bd8 {[%emt 0:00:02]} 56. Ne4 {[%emt 0:00:07]} Be7 {[%emt 0:00:05]} 57. Bc1 {[%emt 0:00:25]} Bd8 {[%emt 0:00:20]} 58. Be3 {[%emt 0:00:05]} Be7 {[%emt 0:00:02]} 59. Nf2 {[%emt 0:00:13]} Bd8 {[%emt 0:00:10]} 60. Ng4 {[%emt 0:00:02]} Be7 {[%emt 0:00:04]} 61. Nf2 {[%emt 0:00:08]} Bd8 {[%emt 0:00:02]} 62. Bd2 {[%emt 0:00:32]} Nd4 {[%emt 0:00:18]} 63. Ne4 {[%emt 0:00:19]} Nxf3 {[%emt 0:00:03]} 64. Ke3 {[%emt 0:00:08]} Nxd2 {[%emt 0:00:23]} 65. Nxd2 {[%emt 0:00:02]} g4 {[%emt 0:00:17]} 66. hxg4 {[%emt 0:00:08]} Bg5+ {[%emt 0:00:01]} 67. Kd3 {[%emt 0:00:01]} Bxd2 {[%emt 0:00:28]} 68. Kxd2 {[%emt 0:00:01]} Ke4 {[%emt 0:00:01]} 69. Ke2 {[%emt 0:00:29]} Kf4 {[%emt 0:00:01]} 70. Kd3 {[%emt 0:00:03]} e4+ {[%emt 0:00:13]} 71. Kd4 {[%emt 0:00:09]} e3 {[%emt 0:00:06]} 72. g5 {[%emt 0:00:01]} e2 {[%emt 0:00:03]} 0-1

[Event "American Cup Women Elimination 2024"]
[Site "Saint Louis"]
[Date "2024.03.14"]
[Round "1.2"]
[White "Abrahamyan, Tatev"]
[Black "Yu, Jennifer"]
[Result "0-1"]
[ECO "B48"]
[WhiteElo "2308"]
[BlackElo "2279"]
[Annotator "TA"]
[PlyCount "68"]
[EventDate "2024.03.11"]
[EventType "k.o."]
[EventCountry "USA"]
[SourceTitle "playchess.com"]
[Source "ChessBase"]
[SourceQuality "1"]
[TimeControl "900+10"]

{[%evp 14,68,23,23,67,22,29,-45,-46,-50,-47,-57,-56,-18,-18,-31,-15,-43,-45,-103,-111,-121,-31,-39,-26,-137,-134,-682,-86,-414,-106,-195,-213,-771,-461,-686,-658,-821,-752,-703,-181,-182,-190,-1580,-1551,-1533,-1107,-1111,-1110,-1052,-966,-1259,-1166,-1167,-1145,-29980,-29981]} 1. e4 {[%emt 0:00:03]} c5 {[%emt 0:00:01]} 2. Nf3 {[%emt 0:00:04]} e6 {[%emt 0:00:02]} 3. d4 {[%emt 0:00:11]} cxd4 {[%emt 0:00:02]} 4. Nxd4 {[%emt 0:00:02]} Nc6 {[%emt 0:00:06]} 5. Nc3 {[%emt 0:00:28]} Qc7 {[%emt 0:00:03]} 6. a3 {[%emt 0:01:30]} a6 {[%emt 0:00:19]} 7. Be3 {[%emt 0:00:26]} Nf6 {[%emt 0:01:00]} 8. f4 {[%emt 0:00:36]} Nxd4 {[%emt 0:01:23]} 9. Qxd4 {[%emt 0:01:07]} Ng4 {[%emt 0:00:43]} 10. e5 {[%emt 0:04:14]} (10. Bc1 $11) 10... Nxe3 $15 {[%emt 0:00:47] Black is slightly better.} 11. Qxe3 {[%emt 0:00:02]} d5 {[%emt 0:00:13]} 12. O-O-O {[%emt 0:01:54]} b5 {[%emt 0:03:41]} 13. f5 {[%emt 0:02:43]} b4 {[%emt 0:00:39]} (13... exf5 $2 14. Nxd5 (14. Rxd5 b4 $11) 14... Qc6 15. g4 $18) 14. axb4 {[%emt 0:00:06]} Bxb4 {[%emt 0:00:02]} (14... exf5 $2 15. Nxd5 (15. Rxd5 Bxb4 16. Qd4 Bxc3 $11) 15... Qb7 16. b5 $18) 15. fxe6 {[%emt 0:01:17]} fxe6 {[%emt 0:00:13]} 16. Ne2 {[%emt 0:00:03]} (16. Bd3 $15) 16... O-O $17 {[%emt 0:03:56]} 17. Nd4 {[%emt 0:00:01]} Rb8 {[%emt 0:00:03]} (17... Bc5 $17 {aiming for ...Bd7.} 18. Bd3 Bd7) 18. Bd3 $15 {[%emt 0:00:17]} Bc5 $40 {[%emt 0:02:23][%mdl 128] Black mounts an attack.} 19. c3 {[%emt 0:02:10] [#] Prevents Rb4} (19. Rhf1 $11) 19... Qa5 $1 $17 {[%emt 0:01:18]} 20. Rd2 $2 {[%emt 0:00:21][%mdl 8192]} (20. Kb1 $17) 20... Bd7 $2 {[%emt 0:00:38]} (20... Qa1+ $19 21. Bb1 Ba3) 21. Bb1 $2 {[%emt 0:00:21][%mdl 8192]} (21. Kb1 $17 {nothing else works.}) 21... Rfc8 $2 {[%emt 0:00:35]} (21... g6 $19 {has better winning chances. White must now prevent ...Qa1.} 22. h4 Qa1) 22. Qd3 {[%emt 0:00:21] [#]} ({Avoid the trap} 22. Qh3 $2 g6 23. Rf1 Qa1 $19) (22. Rf1 $17 Ba3 23. Kd1 (23. Rf3 Rxb2 24. Rxb2 Qb4 $19) 23... Rxb2 (23... Bxb2 24. Qh3 $18) 24. Rxb2 Bxb2 25. Qh3) 22... g6 $1 $19 {[%emt 0:00:03]} 23. Nc2 {[%emt 0:00:17] Dodges Ba3} (23. Rf1 Be7 24. Ne2) 23... Bf8 {[%emt 0:00:27]} 24. h4 {[%emt 0:00:12]} (24. Rf1 $142 Bb5 25. Rxf8+ Rxf8 26. Qh3) 24... Bh6 {[%emt 0:00:07]} 25. Ne3 {[%emt 0:00:09]} Bb5 {[%emt 0:00:10]} 26. Qd4 {[%emt 0:00:06]} Qb6 $2 {[%emt 0:00:11]} (26... Bc4 27. Ng4 Bxd2+ 28. Qxd2 Qa1) 27. Re1 {[%emt 0:00:09]} Be8 {[%emt 0:00:21] A strong pair of Bishops.} 28. Ng4 $2 {[%emt 0:00:06]} (28. Qxb6 Rxb6 29. g3) 28... Qxb2+ {[%emt 0:00:06]} ({Inferior is} 28... Qxd4 29. Nxh6+ Kg7 30. Rxd4 $16) 29. Kd1 {[%emt 0:00:03]} Qxb1+ {[%emt 0:00:05]} 30. Ke2 {[%emt 0:00:00]} Bb5+ {[%emt 0:00:05]} 31. Kf2 {[%emt 0:00:07]} Qf5+ {[%emt 0:00:08]} 32. Kg3 {[%emt 0:00:01]} Bxd2 {[%emt 0:00:08]} 33. Qxd2 {[%emt 0:00:01]} Kh8 {[%emt 0:00:05]} 34. Re3 {[%emt 0:00:08]} Rc4 {[%emt 0:00:05] Weighted Error Value: White=1.56/Black=1.10.  Loses game:     	White=2     	---        Missed win:     	---       	Black=1      Mistake:       	White=7     	Black=1      Inaccurate:     	White=2     	Black=1      OK:         	White=3     	Black=5      Best:        	White=2     	Black=2      Strong:       	---       	Black=2} 0-1

[Event "American Cup Women Elimination 2024"]
[Site "Saint Louis"]
[Date "2024.03.14"]
[Round "1.2"]
[White "Yu, Jennifer"]
[Black "Abrahamyan, Tatev"]
[Result "1/2-1/2"]
[ECO "D35"]
[WhiteElo "2279"]
[BlackElo "2308"]
[Annotator "TA"]
[PlyCount "114"]
[EventDate "2024.03.11"]
[EventType "k.o."]
[EventCountry "USA"]
[SourceTitle "playchess.com"]
[Source "ChessBase"]
[SourceQuality "1"]
[TimeControl "900+10"]

{[%evp 10,114,14,16,25,21,22,14,18,8,14,10,18,10,28,0,0,0,0,0,14,0,47,34,22,-17,13,16,33,-19,-18,-30,-13,-34,0,0,0,0,0,-20,0,0,0,0,0,0,56,0,50,19,112,94,88,85,91,51,53,51,70,58,125,49,53,38,60,55,54,49,51,36,36,29,29,29,37,0,117,54,52,31,42,42,49,37,37,29,85,54,78,72,59,47,47,37,37,37,37,23,24,25,28,0,8,0,35,0,8]} 1. d4 {[%emt 0:00:02]} Nf6 {[%emt 0:00:02]} 2. c4 {[%emt 0:00:01]} e6 {[%emt 0:00:01]} 3. Nf3 {[%emt 0:00:02]} d5 {[%emt 0:00:01]} 4. Nc3 {[%emt 0:00:04]} Nbd7 {[%emt 0:00:01]} 5. cxd5 {[%emt 0:00:35]} exd5 {[%emt 0:00:02]} 6. Bg5 {[%emt 0:00:01]} h6 {[%emt 0:00:08] D35: Queen's Gambit Declined: Exchange Variation.} 7. Bh4 {[%emt 0:00:45]} c6 {[%emt 0:00:12]} 8. e3 {[%emt 0:00:13]} g5 {[%emt 0:00:27]} 9. Bg3 {[%emt 0:00:02]} Nh5 {[%emt 0:00:01]} 10. Bd3 {[%emt 0:01:16]} Nxg3 {[%emt 0:00:34]} 11. hxg3 {[%emt 0:00:02]} Bg7 {[%emt 0:00:01]} 12. g4 {[%emt 0:02:18]} Nb6 {[%emt 0:01:47]} 13. Nd2 {[%emt 0:02:06]} Qe7 {[%emt 0:00:25]} 14. Qe2 {[%emt 0:00:17]} Be6 {[%emt 0:00:36]} 15. Nb3 $146 {[%emt 0:01:05]} ({Predecessor:} 15. a4 Nc8 16. a5 a6 17. Nb3 Nd6 18. Nc5 O-O 19. O-O Rae8 20. Nxe6 fxe6 21. Bc2 {0-1 Peptan,C (2334)-Lupulescu,C (2525) Bucharest Superbet-B blitz  2019 (12)}) 15... O-O-O {[%emt 0:01:41]} (15... Nd7 $11 {should be considered.}) 16. Nc5 $14 {[%emt 0:00:49]} Nd7 {[%emt 0:01:30]} 17. N3a4 {[%emt 0:00:17]} Nxc5 {[%emt 0:03:34]} 18. Nxc5 {[%emt 0:00:04]} Kb8 {[%emt 0:01:07]} 19. O-O-O {[%emt 0:01:45]} (19. b4 $14) 19... b6 $11 {[%emt 0:02:08]} 20. Nxe6 {[%emt 0:00:36]} fxe6 {[%emt 0:00:02]} 21. Kb1 {[%emt 0:00:08]} e5 {[%emt 0:00:28]} 22. dxe5 {[%emt 0:00:47]} Qxe5 {[%emt 0:00:06]} 23. Qc2 {[%emt 0:00:01]} c5 {[%emt 0:00:09]} 24. Bf5 {[%emt 0:00:11]} Rhe8 {[%emt 0:00:21]} 25. Rd2 {[%emt 0:00:11]} Re7 {[%emt 0:01:00]} 26. Rhd1 {[%emt 0:00:07]} Rc7 {[%emt 0:00:07]} 27. Be4 {[%emt 0:03:27]} d4 {[%emt 0:00:58]} ({Black should play} 27... Rcd7 $11) 28. Bf3 {[%emt 0:00:56]} (28. exd4 $14 cxd4 29. Qd3) 28... Re8 {[%emt 0:00:45]} ({Better is} 28... Rcd7 $11) 29. Re2 {[%emt 0:00:33] exd4 is the strong threat.} d3 {[%emt 0:01:23]} 30. Rxd3 {[%emt 0:00:30]} c4 {[%emt 0:00:01]} 31. Rd5 {[%emt 0:00:05]} Qe7 {[%emt 0:00:11]} 32. Re1 {[%emt 0:00:40]} (32. Rd1 {with more complications.} c3 33. Qd3 cxb2 34. Qd5) 32... c3 {[%emt 0:00:20]} 33. b3 $1 {[%emt 0:00:06]} Rec8 {[%emt 0:00:01]} 34. Red1 {[%emt 0:00:04]} a6 {[%emt 0:00:24]} (34... Qa3 $1 $14 35. Rd8 Rxd8 (35... Qb2+ 36. Qxb2 cxb2 37. Rxc8+ Rxc8 38. Be4 $16) 36. Rxd8+ Rc8 37. Rxc8+ Kxc8) 35. Be2 {[%emt 0:00:13]} (35. Rd6 $16 Ka7 36. R1d3) 35... Qa3 $14 {[%emt 0:00:05] Strongly threatening ...Qb2+.} 36. Rd7 {[%emt 0:00:20]} Be5 {[%emt 0:00:11]} (36... Qb2+ $2 37. Qxb2 cxb2 38. Rxc7 (38. Bxa6 $2 Rc1+) 38... Kxc7 39. Bxa6 $18) 37. Rxc7 {[%emt 0:00:14]} Rxc7 {[%emt 0:00:01]} 38. Rd8+ {[%emt 0:00:09]} Ka7 {[%emt 0:00:04]} 39. Bf3 {[%emt 0:00:04][%csl Gf3][%cal Rd8a8]} b5 {[%emt 0:00:03]} 40. Rd5 {[%emt 0:00:24]} Bg7 {[%emt 0:00:08]} (40... Qb2+ $2 41. Qxb2 cxb2 42. Rxe5 $18) 41. Be4 {[%emt 0:00:07]} Kb6 {[%emt 0:00:05]} 42. Qc1 {[%emt 0:00:18]} Qb2+ {[%emt 0:00:22]} ({Much worse is} 42... Qxc1+ $6 43. Kxc1 Ka5 44. a4 $16) (42... Qb4 $11 43. Bc2 Qf8) 43. Qxb2 $14 {[%emt 0:00:02]} cxb2 {[%emt 0:00:01]} 44. Bc2 {[%emt 0:00:09]} Rf7 {[%emt 0:00:05]} 45. f3 {[%emt 0:00:05]} Re7 {[%emt 0:00:09]} 46. e4 {[%emt 0:00:04]} Kc6 {[%emt 0:00:31]} 47. b4 {[%emt 0:00:11]} Kb6 {[%emt 0:00:23]} (47... Rd7 $11) 48. Bb3 {[%emt 0:00:22]} Rc7 {[%emt 0:00:03][%csl Gb2][%cal Rc7c1]} 49. e5 {[%emt 0:00:11]} Re7 {[%emt 0:00:08]} 50. Kxb2 {[%emt 0:00:03]} (50. Rd6+ {is interesting.} Kc7 51. Rxa6 Bxe5 52. Bc2) 50... Rxe5 {[%emt 0:00:13]} 51. Rxe5 {[%emt 0:00:19]} (51. Rd6+ Kc7 52. Rg6 (52. Rxa6 $2 {perishes.} Re6+ 53. Kc2 Rxa6 $19) 52... Re2+ 53. Kc1 Bc3 $11) 51... Bxe5+ {[%emt 0:00:01]} 52. Kc2 {[%emt 0:00:01]} Bd6 {[%emt 0:00:07]} 53. Kc3 {[%emt 0:00:05]} Be5+ {[%emt 0:00:03]} 54. Kd3 {[%emt 0:00:02]} Bd6 {[%emt 0:00:00]} 55. Kc3 {[%emt 0:00:07]} Be5+ $1 {[%emt 0:00:01]} 56. Kd3 {[%emt 0:00:24]} Bd6 {[%emt 0:00:01]} 57. Kc3 {[%emt 0:00:01]} Be5+ $1 {[%emt 0:00:06]} 1/2-1/2

[Event "American Cup Women Elimination 2024"]
[Site "Saint Louis"]
[Date "2024.03.14"]
[Round "1.2"]
[White "Tang, Zoey"]
[Black "Zatonskih, Anna"]
[Result "1-0"]
[ECO "D31"]
[WhiteElo "2253"]
[BlackElo "2348"]
[Annotator "TA"]
[PlyCount "59"]
[EventDate "2024.03.11"]
[EventType "k.o."]
[EventCountry "USA"]
[SourceTitle "playchess.com"]
[Source "ChessBase"]
[SourceQuality "1"]
[TimeControl "900+10"]

{[%evp 9,59,27,27,30,21,27,17,24,27,0,22,18,29,7,21,14,22,9,18,-6,7,7,8,0,0,-24,0,0,0,-27,-20,-17,-31,-83,2,0,37,31,25,39,53,35,88,66,360,359,368,365,355,354,29990,29991]} 1. d4 {[%emt 0:00:03]} d5 {[%emt 0:00:01]} 2. c4 {[%emt 0:00:01]} e6 {[%emt 0:00:02]} 3. Nc3 {[%emt 0:00:02]} h6 {[%emt 0:00:01]} 4. cxd5 {[%emt 0:01:08]} exd5 {[%emt 0:00:01]} 5. Bf4 {[%emt 0:00:01]} Nf6 {[%emt 0:00:05]} 6. e3 {[%emt 0:00:03]} Bd6 {[%emt 0:00:07]} 7. Bxd6 {[%emt 0:00:06]} Qxd6 {[%emt 0:00:01]} 8. Bd3 {[%emt 0:00:03] The position is equal.} O-O {[%emt 0:00:06]} 9. Qc2 {[%emt 0:00:43]} Qe7 {[%emt 0:03:52]} 10. Nf3 {[%emt 0:00:36]} c6 {[%emt 0:01:00]} 11. h3 {[%emt 0:00:58]} Nbd7 {[%emt 0:00:44]} 12. O-O {[%emt 0:00:24]} Re8 {[%emt 0:00:01]} 13. Ne2 {[%emt 0:01:31]} Ne4 {[%emt 0:00:35]} 14. Bxe4 {[%emt 0:00:59]} dxe4 {[%emt 0:00:22]} 15. Nd2 {[%emt 0:00:02]} Nf6 {[%emt 0:00:19]} 16. Ng3 {[%emt 0:00:14]} h5 {[%emt 0:00:17][%cal Bh6h5,Bh5h4][%mdl 32]} 17. f3 {[%emt 0:00:32]} exf3 {[%emt 0:00:44]} 18. Rxf3 {[%emt 0:00:02]} h4 {[%emt 0:00:18]} 19. Nf5 {[%emt 0:00:37]} (19. Ne2 $5) 19... Bxf5 {[%emt 0:00:18]} 20. Qxf5 {[%emt 0:00:02]} Rad8 {[%emt 0:04:25][%cal Oc6c5]} 21. Nc4 {[%emt 0:01:41] [#]} (21. Rc1 $15) 21... Ne4 {[%emt 0:01:31]} (21... Rd5 $1 $17 {[%cal Rd5f5]} 22. Ne5 c5) 22. Ne5 $11 {[%emt 0:00:41]} Ng5 {[%emt 0:00:07][%cal Of7f6] Hoping for ...f6!} 23. Rf4 {[%emt 0:01:47]} f6 {[%emt 0:00:33]} 24. Ng4 {[%emt 0:00:07]} Qf7 {[%emt 0:00:12] Inhibits Qg6.} 25. Raf1 {[%emt 0:00:36][%cal Of5g5,Ba1f1,Bf1f6,Bf6f7][%mdl 32] Threatens to win with Qxg5!} Rd5 {[%emt 0:00:48]} (25... Qh5 $14) 26. Qc2 {[%emt 0:00:27][%cal Rf4f6] aiming for Rxf6!} Rd6 {[%emt 0:00:51][%mdl 8192] [#] This move loses the game for Black.} (26... Nh7 $1 $14) 27. Rxf6 $3 $18 {[%emt 0:01:02][%mdl 512]} Rxf6 {[%emt 0:00:18]} 28. Rxf6 {[%emt 0:00:02]} Qe7 {[%emt 0:00:45]} ({Wrong is} 28... Nxh3+ $2 29. gxh3 gxf6 30. Nh6+ Kf8 31. Nxf7 $18) 29. Qg6 {[%emt 0:01:14][%cal Of6f5] And now Rf5! would win.} Ne4 $2 {[%emt 0:01:09] [#]} (29... Rf8 $18) 30. Rf7 $3 {[%emt 0:00:27][%mdl 512] Weighted Error Value: White=0.10 (very precise) /Black=0.52.  Loses game:     	---       	Black=1      Mistake:       	White=1     	Black=3      Inaccurate:     	White=2     	Black=1      OK:         	White=6     	Black=8      Best:        	White=3     	Black=2      Brilliant:      	White=2     	---} 1-0

[Event "American Cup Women Elimination 2024"]
[Site "Saint Louis"]
[Date "2024.03.14"]
[Round "1.3"]
[White "Yu, Jennifer"]
[Black "Abrahamyan, Tatev"]
[Result "1-0"]
[ECO "D35"]
[WhiteElo "2279"]
[BlackElo "2308"]
[Annotator "RC"]
[PlyCount "115"]
[EventDate "2024.03.11"]
[EventType "k.o."]
[EventCountry "USA"]
[SourceTitle "playchess.com"]
[Source "ChessBase"]
[SourceQuality "1"]
[TimeControl "900+10"]

1. d4 {[%emt 0:00:01]} Nf6 {[%emt 0:00:01]} 2. c4 {[%emt 0:00:01]} e6 {[%emt 0:00:02]} 3. Nf3 {[%emt 0:00:02]} d5 {[%emt 0:00:01]} 4. Nc3 {[%emt 0:00:01]} Nbd7 {[%emt 0:00:01]} 5. cxd5 {[%emt 0:00:07]} exd5 {[%emt 0:00:01]} 6. Bg5 {[%emt 0:00:02]} h6 {[%emt 0:00:05]} 7. Bh4 {[%emt 0:00:01]} c6 {[%emt 0:00:01]} 8. e3 {[%emt 0:00:04]} g5 {[%emt 0:00:03]} 9. Bg3 {[%emt 0:00:01]} Nh5 {[%emt 0:00:02]} 10. Bd3 {[%emt 0:00:51]} Nxg3 {[%emt 0:00:15]} 11. hxg3 {[%emt 0:00:01]} Bg7 {[%emt 0:00:01]} 12. Qc2 {[%emt 0:00:49]} Nb6 {[%emt 0:00:51]} 13. O-O-O {[%emt 0:01:51]} Be6 {[%emt 0:00:05]} 14. Ne5 {[%emt 0:00:22]} Bxe5 {[%emt 0:02:09]} 15. dxe5 {[%emt 0:00:02]} Qe7 {[%emt 0:01:02]} 16. Kb1 {[%emt 0:01:02]} O-O-O {[%emt 0:00:23]} 17. f4 {[%emt 0:00:50]} Kb8 {[%emt 0:00:29]} 18. Be2 {[%emt 0:04:00]} Bc8 {[%emt 0:00:43]} 19. e4 {[%emt 0:02:20]} gxf4 {[%emt 0:04:07]} 20. gxf4 {[%emt 0:00:29]} f6 {[%emt 0:00:19]} 21. exd5 {[%emt 0:03:21]} cxd5 {[%emt 0:00:18]} 22. exf6 {[%emt 0:00:19]} Qxf6 {[%emt 0:00:02]} 23. g3 {[%emt 0:00:09]} Rhe8 {[%emt 0:02:10]} 24. Ka1 {[%emt 0:00:26]} a6 {[%emt 0:01:40]} 25. Bf3 {[%emt 0:01:05]} d4 {[%emt 0:02:06]} 26. Ne4 {[%emt 0:00:01]} Qg6 {[%emt 0:00:02]} 27. Rc1 {[%emt 0:00:24]} Nd5 {[%emt 0:00:35]} 28. Rhd1 {[%emt 0:00:33]} Qb6 {[%emt 0:00:29]} 29. Qc5 {[%emt 0:00:29]} Qxc5 {[%emt 0:00:32]} 30. Nxc5 {[%emt 0:00:02]} Ne3 {[%emt 0:00:01]} 31. Rd2 {[%emt 0:00:05]} Rg8 {[%emt 0:00:24]} 32. Rg1 {[%emt 0:00:15]} b6 {[%emt 0:00:29]} 33. Nd3 {[%emt 0:00:20]} Bf5 {[%emt 0:00:08]} 34. Ne5 {[%emt 0:00:11]} Nc2+ {[%emt 0:00:54]} 35. Kb1 {[%emt 0:00:04]} Ne1+ {[%emt 0:00:06]} 36. Ka1 {[%emt 0:00:07]} Nxf3 37. Nxf3 {[%emt 0:00:01]} d3 {[%emt 0:00:06]} 38. b3 {[%emt 0:00:21]} Rc8 {[%emt 0:00:19]} 39. Kb2 {[%emt 0:00:16]} Rc5 {[%emt 0:00:18]} 40. Ne5 {[%emt 0:00:09]} Rgc8 {[%emt 0:00:07]} 41. g4 {[%emt 0:00:09]} Rc2+ {[%emt 0:00:09]} 42. Rxc2 {[%emt 0:00:05]} Rxc2+ {[%emt 0:00:01]} 43. Ka3 {[%emt 0:00:09]} Be4 {[%emt 0:00:16]} 44. Rd1 {[%emt 0:00:03]} Rc3 {[%emt 0:00:22]} 45. Kb4 {[%emt 0:00:11]} Rc2 {[%emt 0:00:09]} 46. Nxd3 {[%emt 0:00:05]} Rxa2 {[%emt 0:00:04]} 47. Ne5 {[%emt 0:00:03]} Rf2 {[%emt 0:00:04]} 48. f5 {[%emt 0:00:03]} Rf4 {[%emt 0:00:05]} 49. Rd4 {[%emt 0:00:06]} Kc7 {[%emt 0:00:17]} 50. Kc3 {[%emt 0:00:07]} h5 {[%emt 0:00:12]} 51. gxh5 {[%emt 0:00:04]} Rxf5 {[%emt 0:00:03]} 52. Rxe4 {[%emt 0:00:04]} Rxh5 {[%emt 0:00:01]} 53. Nc4 {[%emt 0:00:08]} b5 {[%emt 0:00:08]} 54. Na5 {[%emt 0:00:28]} Kb6 {[%emt 0:00:23]} 55. Re6+ {[%emt 0:00:23]} Ka7 {[%emt 0:00:08]} 56. Nc6+ {[%emt 0:00:12]} Kb7 {[%emt 0:00:13]} 57. Kb4 {[%emt 0:00:06]} Rh3 {[%emt 0:00:09]} 58. Na5+ {[%emt 0:00:08]} 1-0